lending/lending_fUSD_20260204
["ID","MTS","AMOUNT","RATE_DAILY","PERIOD"]
[404522367,1770238238093,-151.0,0.00012792,2]
[404522368,1770238238103,-151.0,0.00012792,2]
[404522369,1770238238113,-151.0,0.00012792,2]
[404522370,1770238238124,-151.0,0.00012792,2]
[404522371,1770238238137,-7800.0,0.000128,4]
[404522372,1770238238147,-10500.0,0.000129,4]
[404522373,1770238238157,-2083.48052678,0.000129,2]
[404522374,1770238238167,-5498.33807406,0.000129,2]
[404522375,1770238238177,-9699.72010148,0.000129,2]
[404522376,1770238238187,-341.0,0.00013044,2]
[404522377,1770238238196,-3792.32378225,0.00013069,2]
[404522378,1770238238206,-1464.0,0.0001307,2]
[404522379,1770238238218,-12324.59763958,0.000131,2]
[404522380,1770238238227,-1490.0,0.00013105,2]
[404522381,1770238238237,-831.0,0.00013131,2]
[404522382,1770238238247,-1533.8,0.00013169,2]
[404522383,1770238238256,-173.20210392,0.00013271,2]
[404522384,1770238238265,-173.20210392,0.00013271,2]
[404522385,1770238238275,-1000.0,0.00013298,2]
[404522386,1770238238284,-166.66,0.00013312,2]
[404522387,1770238238293,-1131.907,0.00013312,2]
[404522388,1770238238303,-157.18,0.00013312,2]
[404522389,1770238238312,-1852.42,0.00013328,2]
[404522390,1770238238321,-500.0,0.0001334,2]
[404522391,1770238238331,-152.83,0.0001339,2]
[404522392,1770238238340,-3240.0,0.00013425,2]
[404522393,1770238238351,-269.46650018,0.00013568,2]
[404522394,1770238238361,-3792.32378221,0.00013606,2]
[404522395,1770238238370,-1000.0,0.00013608,2]
[404522396,1770238238380,-152.83,0.00013664,2]
[404522397,1770238238389,-18487.88,0.00013685,2]
[404522398,1770238238398,-255.0,0.00013695,2]
[404522399,1770238238408,-500.0,0.00013698,2]
[404522400,1770238238417,-500.0,0.00013698,2]
[404522401,1770238238426,-500.0,0.00013698,2]
[404522402,1770238238436,-534.84,0.00013698,2]
[404522403,1770238238445,-201.06578033,0.00013698,2]
[404522404,1770238238454,-500.0,0.00013698,2]
[404522405,1770238238463,-500.0,0.00013698,2]
[404522406,1770238238472,-500.0,0.00013698,2]
[404522407,1770238238482,-500.0,0.00013698,2]
[404522408,1770238238491,-276.48,0.00013698,2]
[404522409,1770238238500,-500.0,0.00013698,2]
[404522410,1770238238510,-500.0,0.00013698,2]
[404522411,1770238238520,-500.0,0.00013698,2]
[404522412,1770238238529,-500.0,0.00013698,2]
[404522413,1770238238539,-500.0,0.00013698,2]
[404522414,1770238238549,-508.81699603,0.00013698,2]
[404522415,1770238238558,-200.0,0.00013699,2]
[404522416,1770238238567,-178.59,0.00013699,2]
[404522417,1770238238576,-9999.99,0.00013699,2]
[404522418,1770238238585,-12324.59763958,0.000137,2]
[404522419,1770238238596,-420.0,0.00013714,2]
[404522420,1770238238605,-208.0,0.00013738,2]
[404522421,1770238238614,-2500.0,0.0001374,2]
[404522422,1770238238623,-2500.0,0.0001374,2]
[404522423,1770238238632,-2500.0,0.0001374,2]
[404522424,1770238238642,-2500.0,0.0001374,2]
[404522425,1770238238652,-2500.0,0.0001374,2]
[404522426,1770238238661,-300.0,0.0001374,2]
[404522427,1770238238670,-600.0,0.0001374,2]
[404522428,1770238238680,-600.0,0.0001374,2]
[404522429,1770238238689,-600.0,0.0001374,2]
[404522430,1770238238698,-600.0,0.0001374,2]
[404522431,1770238238707,-600.0,0.0001374,2]
[404522432,1770238238716,-195.0,0.0001374,2]
[404522433,1770238238725,-166.66,0.00013751,2]
[404522434,1770238238734,-150.39,0.00013915,2]
[404522435,1770238238744,-152.85,0.00013938,2]
[404522436,1770238238753,-173.20210392,0.00014043,2]
[404522437,1770238238762,-173.20210392,0.00014043,2]
[404522438,1770238238772,-3792.32378221,0.00014143,2]
[404522439,1770238238781,-6897.91705829,0.00014148,2]
[404522440,1770238238790,-166.66,0.00014191,2]
[404522441,1770238238799,-12324.59763958,0.000143,2]
[404522442,1770238238808,-8009.87,0.00014321,2]
[404522443,1770238238818,-500.0,0.000146,2]
[404522444,1770238238828,-235.04432353,0.000146,2]
[404522445,1770238238837,-639.05832686,0.000146,2]
[404522446,1770238238846,-500.0,0.000146,2]
[404522447,1770238238856,-500.0,0.000146,2]
[404522448,1770238238865,-166.66,0.0001463,2]
[404522449,1770238238874,-3792.32378221,0.00014679,2]
[404522450,1770238238883,-173.20210392,0.00014814,2]
[404522451,1770238238892,-1533.8,0.00014816,2]
[404522452,1770238238901,-187.0,0.00014892,2]
[404522453,1770238238910,-12324.59763958,0.000149,2]
[404522454,1770238238919,-250.0,0.00015,2]
[404522455,1770238238929,-152.38,0.00015,2]
[404522456,1770238238938,-152.38,0.00015,2]
[404522457,1770238238948,-178.59,0.00015068,2]
[404522458,1770238238958,-166.66,0.0001507,2]
[404522459,1770238238967,-1000.0,0.00015148,2]
[404522460,1770238238977,-1000.0,0.00015148,2]
[404522461,1770238238987,-418.49460526,0.00015148,2]
[404522462,1770238238997,-150.39,0.0001518,2]
[404522463,1770238239007,-3792.32378221,0.00015216,2]
[404522464,1770238239017,-190.51319598,0.000153,2]
[404522465,1770238239028,-1000.0,0.00015309,2]
[404522466,1770238239038,-12324.59763958,0.000155,2]
[404522467,1770238239049,-166.66,0.00015509,2]
[404522468,1770238239058,-1500.0,0.00015696,2]
[404522469,1770238239255,-1500.0,0.00015696,2]
[404522470,1770238239266,-500.0,0.00015699,2]
[404522471,1770238239276,-3792.32378221,0.00015753,2]
[404522472,1770238239286,-12324.59763958,0.000161,2]
[404522473,1770238239297,-1153.93461934,0.00016116,2]
[404522474,1770238239306,-5115.52230349,0.00016116,2]
[404522475,1770238239317,-3286.1281269,0.00016116,2]
[404522476,1770238239327,-7105.77,0.00016116,2]
[404522477,1770238239336,-150.99,0.00016116,2]
[404522478,1770238239347,-4875.22,0.00016116,2]
[404522479,1770238239356,-2000.0,0.00016244,2]
[404522480,1770238239365,-2000.0,0.00016244,2]
[404522481,1770238239375,-3792.32378221,0.0001629,2]
[404522482,1770238239384,-178.59,0.00016438,2]
[404522483,1770238239393,-800.755787,0.00016438,2]
[404522484,1770238239403,-150.39,0.00016445,2]
[404522485,1770238239412,-481.28670728,0.00016451,2]
[404522486,1770238239422,-1533.8,0.00016462,2]
[404522487,1770238239431,-500.0,0.00016648,2]
[404522488,1770238239441,-500.0,0.00016648,2]
[404522489,1770238239451,-12324.59763958,0.000167,2]
[404522490,1770238239462,-416.982919,0.0001676,7]
[404522491,1770238239473,-2500.0,0.00016792,2]
[404522492,1770238239483,-1826.91110422,0.00016792,2]
[404522493,1770238239493,-160.0,0.00016816,2]
[404522494,1770238239504,-3792.32378221,0.00016826,2]
[404522495,1770238239516,-481.28670728,0.00016862,2]
[404522496,1770238239528,-300.0,0.00017,2]
[404522497,1770238239538,-1000.0,0.0001701,2]
[404522498,1770238239550,-500.0,0.00017085,2]
[404522499,1770238239560,-174.61919141,0.00017099,2]
[404522500,1770238239569,-500.0,0.00017099,2]
[404522501,1770238239580,-500.0,0.00017099,2]
[404522502,1770238239589,-500.0,0.00017099,2]
[404522503,1770238239600,-500.0,0.00017099,2]
[404522504,1770238239609,-500.0,0.00017099,2]
[404522505,1770238239618,-500.0,0.00017099,2]
[404522506,1770238239628,-578.20924308,0.00017099,2]
[404522507,1770238239637,-500.0,0.00017099,2]
[404522508,1770238239647,-500.0,0.00017099,2]
[404522509,1770238239657,-500.0,0.00017099,2]
[404522510,1770238239667,-209.40437684,0.00017099,2]
[404522511,1770238239677,-500.0,0.00017099,2]
[404522512,1770238239687,-500.0,0.00017099,2]
[404522513,1770238239697,-500.0,0.00017099,2]
[404522514,1770238239710,-500.0,0.00017099,2]
[404522515,1770238239719,-500.0,0.00017099,2]
[404522516,1770238239729,-500.0,0.00017099,2]
[404522517,1770238239739,-500.0,0.00017099,2]
[404522518,1770238239748,-500.0,0.00017099,2]
[404522519,1770238239757,-500.0,0.00017099,2]
[404522520,1770238239766,-500.0,0.00017099,2]
[404522521,1770238239775,-322.6107,0.00017099,2]
[404522522,1770238239785,-500.0,0.00017099,2]
[404522523,1770238239794,-500.0,0.00017099,2]
[404522524,1770238239803,-743.50770149,0.00017099,2]
[404522525,1770238239812,-217.15233878,0.00017154,2]
[404522526,1770238239821,-225.18697532,0.00017209,2]
[404522527,1770238239830,-233.51889341,0.00017264,2]
[404522528,1770238239839,-481.28670728,0.00017273,2]
[404522529,1770238239850,-12324.59763958,0.000173,2]
[404522530,1770238239860,-242.15909246,0.00017319,2]
[404522531,1770238239870,-3000.0,0.0001734,2]
[404522532,1770238239879,-1194.0,0.00017358,2]
[404522533,1770238239889,-3792.32378221,0.00017363,2]
[404522534,1770238239898,-4070.24,0.00017369,2]
[404522535,1770238239907,-500.0,0.0001737,2]
[404522536,1770238239916,-251.11897888,0.00017374,2]
[404522537,1770238239926,-13100.0,0.000174,6]
[404522538,1770238239935,-260.4103811,0.00017429,2]
[404522539,1770238239944,-270.0455652,0.00017484,2]
[404522540,1770238239954,-2600.0,0.000175,6]
[404522541,1770238239964,-280.03725112,0.00017539,2]
[404522542,1770238239973,-290.39862941,0.00017594,2]
[404522543,1770238239984,-2600.0,0.000176,6]
[404522544,1770238239993,-1194.0,0.00017603,2]
[404522545,1770238240002,-181.08010149,0.00017647,2]
[404522546,1770238240012,-771.01748645,0.00017647,2]
[404522547,1770238240021,-301.1433787,0.00017649,2]
[404522549,1770238240030,-481.28670728,0.00017685,2]
[404522551,1770238240039,-2600.0,0.000177,6]
[404522553,1770238240048,-981.0,0.00017707,2]
[404522555,1770238240057,-150.39,0.0001771,2]
[404522556,1770238240066,-981.0,0.0001778,2]
[404522557,1770238240075,-2600.0,0.000178,6]
[404522559,1770238240084,-981.0,0.00017829,2]
[404522560,1770238240094,-456.738324,0.00017876,2]
[404522562,1770238240103,-3500.0,0.00017888,2]
[404522564,1770238240111,-5000.0,0.000179,2]
[404522566,1770238240121,-190.51319598,0.000179,2]
[404522568,1770238240132,-3792.32378221,0.000179,2]
[404522570,1770238240143,-2900.0,0.000179,6]
[404522572,1770238240152,-12324.59763958,0.000179,2]
[404522574,1770238240162,-14510.20116966,0.000179,2]
[404522576,1770238240172,-19632.8088,0.000179,2]
[404522578,1770238240182,-18680.0,0.000179,2]
[404522580,1770238240192,-981.0,0.00017901,2]
[404522582,1770238240201,-500.0,0.00017973,2]
[404522585,1770238240212,-173.24261396,0.00017973,2]
[404522588,1770238240221,-501.89927416,0.00017973,2]
[404522590,1770238240230,-500.0,0.00017973,2]
[404522592,1770238240239,-500.0,0.00017973,2]
[404522594,1770238240248,-500.0,0.00017973,2]
[404522596,1770238240257,-501.04094175,0.00017973,2]
[404522598,1770238240267,-500.0,0.00017973,2]
[404522600,1770238240276,-500.0,0.00017973,2]
[404522602,1770238240285,-500.0,0.00017973,2]
[404522604,1770238240294,-500.0,0.00017973,2]
[404522606,1770238240303,-500.0,0.00017973,2]
[404522608,1770238240312,-500.0,0.00017973,2]
[404522609,1770238240321,-500.0,0.00017973,2]
[404522611,1770238240330,-293.82457575,0.00017973,2]
[404522612,1770238240339,-500.0,0.00017973,2]
[404522613,1770238240349,-500.0,0.00017973,2]
[404522614,1770238240358,-500.0,0.00017973,2]
[404522615,1770238240367,-500.0,0.00017973,2]
[404522616,1770238240377,-500.0,0.00017973,2]
[404522617,1770238240386,-500.0,0.00017973,2]
[404522618,1770238240395,-500.0,0.00017973,2]
[404522619,1770238240403,-500.0,0.00017973,2]
[404522620,1770238240412,-500.0,0.00017973,2]
[404522621,1770238240421,-500.3243835,0.00017973,2]
[404522622,1770238240430,-500.0,0.00017973,2]
[404522623,1770238240439,-500.0,0.00017973,2]
[404522624,1770238240447,-349.75358634,0.00017973,2]
[404522625,1770238240456,-500.0,0.00017973,2]
[404522626,1770238240465,-500.0,0.00017973,2]
[404522627,1770238240474,-500.0,0.00017973,2]
[404522628,1770238240483,-500.0,0.00017973,2]
[404522629,1770238240492,-500.0,0.00017973,2]
[404522630,1770238240501,-500.0,0.00017973,2]
[404522631,1770238240510,-500.0,0.00017973,2]
[404522632,1770238240519,-500.0,0.00017973,2]
[404522633,1770238240528,-577.54146151,0.00017973,2]
[404522634,1770238240537,-500.0,0.00017973,2]
[404522635,1770238240547,-500.0,0.00017973,2]
[404522636,1770238240555,-500.0,0.00017973,2]
[404522637,1770238240564,-500.40903786,0.00017973,2]
[404522638,1770238240574,-371.34493106,0.00017973,2]
[404522639,1770238240583,-500.0,0.00017973,2]
[404522640,1770238240593,-500.0,0.00017973,2]
[404522641,1770238240602,-500.0,0.00017973,2]
[404522642,1770238240612,-500.0,0.00017973,2]
[404522643,1770238240621,-500.0,0.00017973,2]
[404522644,1770238240630,-500.0,0.00017973,2]
[404522645,1770238240639,-500.0,0.00017973,2]
[404522646,1770238240649,-500.0,0.00017973,2]
[404522647,1770238240658,-500.0,0.00017973,2]
[404522648,1770238240667,-599.14413433,0.00017973,2]
[404522649,1770238240677,-500.0,0.00017973,2]
[404522650,1770238240686,-500.0,0.00017973,2]
[404522651,1770238240696,-500.0,0.00017973,2]
[404522652,1770238240705,-500.0,0.00017973,2]
[404522653,1770238240715,-500.0,0.00017982,2]
[404522654,1770238240725,-28062.3458889,0.00017986,2]
[404522655,1770238240736,-9054.9034598,0.00017986,2]
[404522656,1770238240745,-196.3623484,0.00017986,2]
[404522657,1770238240755,-7113.5053067,0.00017986,2]
[404522658,1770238240764,-172.07820881,0.0001799,2]
[404522659,1770238240775,-152.38,0.0001799,2]
[404522660,1770238240785,-152.38,0.0001799,2]
[404522661,1770238240796,-981.0,0.00017991,2]
[404522662,1770238240806,-200.0,0.00017998,2]
[404522663,1770238240815,-200.0,0.00017998,3]
[404522664,1770238240824,-200.0,0.00017998,4]
[404522665,1770238240833,-200.0,0.00017998,5]
[404522666,1770238240842,-200.0,0.00017998,6]
[404522667,1770238240851,-200.0,0.00017998,7]
[404522668,1770238240859,-200.0,0.00017998,8]
[404522669,1770238240868,-200.0,0.00017998,9]
[404522670,1770238240878,-1076.99786911,0.00017999,2]
[404522671,1770238240887,-150.0,0.00017999,2]
[404522672,1770238240896,-187.66498297,0.00017999,2]
[404522673,1770238240905,-300.0,0.00017999,2]
[404522674,1770238240914,-300.0,0.00017999,2]
[404522675,1770238240924,-300.0,0.00017999,2]
[404522676,1770238240934,-300.0,0.00017999,2]
[404522677,1770238240943,-666.0,0.00017999,2]
[404522678,1770238240952,-300.0,0.00017999,2]
[404522679,1770238240961,-784.17514772,0.00017999,2]
[404522680,1770238240971,-1593644.1041901,0.00018,2]
[404522681,1770238241119,-2368.68523974,0.00018,2]
[404522682,1770238241129,-847.97755342,0.00018,2]
[404522683,1770238241143,-2256.70555665,0.00018,2]
[404522684,1770238241157,-4992.61308658,0.00018,2]
[404522685,1770238241245,-615.00501975,0.00018,2]
[404522686,1770238241255,-1498.1621395,0.00018,2]
[404522687,1770238241266,-838.48,0.00018,2]
[404522688,1770238241280,-307.7486033,0.00018,2]
[404522689,1770238241291,-3214.30239313,0.00018,2]
[404522690,1770238241301,-1750.0,0.00018,2]
[404522691,1770238241311,-356.68236483,0.00018,2]
[404522692,1770238241322,-644.38,0.00018,2]
[404522693,1770238241333,-2179.26069336,0.00018,2]
[404522694,1770238241348,-1254.90890712,0.00018,2]
[404522699,1770238244037,-179.2185503,0.000125,2]
[404522701,1770238244046,-29679.14634552,0.00018,2]
[404522707,1770238244312,-1912.06742275,0.00018,2]
[404522708,1770238244322,-483.18000002,0.00018,2]
[404522709,1770238244344,-679820.34971001,0.00018,2]
[404522710,1770238244355,-1120.50130482,0.00018,2]
[404522711,1770238244366,-477.94,0.00018,2]
[404522712,1770238244377,-9704.71652643,0.00018,2]
[404522715,1770238245701,-1038.5489718,0.000125,2]
[404522716,1770238245712,-362.62256568,0.000125,2]
[404522717,1770238245756,-789.88461245,0.000125,2]
[404522724,1770238245981,-351.5521247,0.000125,2]
[404522726,1770238245992,-350.65260241,0.000125,2]
[404522727,1770238246001,-179.21855029,0.000152,2]
[404522729,1770238246010,-703.94215096,0.00018,2]
[404522732,1770238246037,-4870.63930858,0.00018,2]
[404522734,1770238246048,-6671.96574154,0.00018,2]
[404522773,1770238371145,-500.0,0.00012391,2]
[404522774,1770238371169,-42.0,0.000125,2]
[404522784,1770239431636,-300.0,0.00012499,2]
[404522785,1770239431646,-958.0,0.000125,2]
[404522786,1770239431656,-336.4736441,0.000125,2]
[404522788,1770239431689,-398.75,0.000125,2]
[404522789,1770239431703,-4358.5989559,0.000125,2]
[404522790,1770239431712,-3618.68200536,0.000134,2]
[404522791,1770239431722,-172.07820883,0.00013488,2]
[404522792,1770239431731,-150.0,0.00013497,2]
[404522793,1770239431740,-722.96933342,0.00013497,2]
[404522794,1770239431750,-500.0,0.00013497,2]
[404522795,1770239431759,-500.0,0.00013497,2]
[404522796,1770239431768,-481.04007822,0.00013497,2]
[404522797,1770239431779,-18.95992178,0.00013497,2]
[404522798,1770239431789,-500.0,0.00013497,2]
[404522799,1770239431798,-356.53007822,0.00013497,2]
[404522800,1770239431809,-115.03490948,0.00013497,2]
[404522801,1770239431819,-1286.5135837,0.00013498,2]
[404522802,1770239431830,-2400.0,0.00013498,2]
[404522803,1770239431841,-2981.47290598,0.00013498,2]
[404522804,1770239431851,-3617.81106849,0.00013498,2]
[404522805,1770239431862,-772.22552744,0.00013498,2]
[404522807,1770239431873,-1954.0,0.00013498,2]
[404522809,1770239431884,-564.70610612,0.00013498,2]
[404522811,1770239431896,-1650.0,0.00013498,2]
[404522814,1770239431910,-9223.5,0.00013498,2]
[404522821,1770239437739,-1928.84058468,0.00013497,2]
[404522822,1770239437749,-10443.44340048,0.00013498,2]
[404522823,1770239437795,-8674.6,0.00013498,2]
[404522824,1770239437850,-592.00000003,0.00013498,2]
[404522825,1770239437922,-13003.40650649,0.00013498,2]
[404522826,1770239437964,-2045971.54826989,0.00013498,2]
[404522827,1770239437977,-366.06223353,0.00013498,2]
[404522828,1770239437989,-1935.93776647,0.00013498,2]
[404522865,1770239439831,-511.96247968,0.00013498,2]
[404522866,1770239439911,-237.97508463,0.00013498,2]
[404522867,1770239440054,-1400480.82155675,0.00013498,2]
[404522868,1770239440063,-463.73983183,0.00013597,2]
[404522869,1770239440073,-190.51319598,0.00013598,2]
[404522870,1770239440082,-1400.0,0.000136,4]
[404522871,1770239440092,-500.0,0.00013698,2]
[404522872,1770239440101,-565.6926201,0.00013698,2]
[404522873,1770239440111,-2900.0,0.000137,5]
[404522874,1770239440120,-420.0,0.00013714,2]
[404522875,1770239440129,-195.0,0.00013749,2]
[404522876,1770239440138,-2500.0,0.00013749,2]
[404522877,1770239440148,-2500.0,0.00013749,2]
[404522878,1770239440158,-2500.0,0.00013749,2]
[404522879,1770239440167,-2500.0,0.00013749,2]
[404522880,1770239440176,-2500.0,0.00013749,2]
[404522881,1770239440186,-300.0,0.00013749,2]
[404522882,1770239440195,-600.0,0.0001375,2]
[404522883,1770239440205,-600.0,0.0001375,2]
[404522884,1770239440215,-600.0,0.0001375,2]
[404522886,1770239440225,-600.0,0.0001375,2]
[404522887,1770239440237,-600.0,0.0001375,2]
[404522888,1770239440247,-4300.0,0.000138,5]
[404522889,1770239440256,-5800.0,0.000139,5]
[404522890,1770239440266,-3618.68200531,0.000139,2]
[404522891,1770239440275,-3738.54,0.00014156,2]
[404522893,1770239440285,-189.0,0.0001427,2]
[404522895,1770239440294,-1462.72625091,0.00014308,2]
[404522897,1770239440304,-3860.15771875,0.00014308,2]
[404522899,1770239440313,-6809.77577499,0.00014308,2]
[404522901,1770239440322,-3618.68200531,0.000144,2]
[404522903,1770239440331,-316.0,0.00014459,2]
[404522905,1770239440340,-170.0,0.00014509,2]
[404522907,1770239440349,-500.0,0.000146,2]
[404522909,1770239440358,-235.04432353,0.000146,2]
[404522911,1770239440368,-639.05832686,0.000146,2]
[404522913,1770239440378,-500.0,0.000146,2]
[404522915,1770239440387,-500.0,0.000146,2]
[404522917,1770239440397,-255.0,0.00014617,2]
[404522919,1770239440406,-3618.68200531,0.000149,2]
[404522921,1770239440416,-151.0,0.00014991,2]
[404522923,1770239440425,-151.0,0.00014991,2]
[404522925,1770239440434,-151.0,0.00014991,2]
[404522927,1770239440444,-151.0,0.00014991,2]
[404522929,1770239440454,-151.0,0.00014991,2]
[404522931,1770239440463,-151.0,0.00014991,2]
[404522933,1770239440472,-151.0,0.00014991,2]
[404522935,1770239440482,-151.0,0.00014991,2]
[404522937,1770239440494,-151.0,0.00014991,2]
[404522939,1770239440503,-151.0,0.00014991,2]
[404522941,1770239440512,-151.0,0.00014991,2]
[404522943,1770239440522,-500.0,0.00014991,2]
[404522945,1770239440532,-500.0,0.00014991,2]
[404522947,1770239440541,-500.0,0.00014991,2]
[404522949,1770239440550,-500.0,0.00014991,2]
[404522951,1770239440560,-500.0,0.00014991,2]
[404522953,1770239440570,-500.0,0.00014991,2]
[404522955,1770239440579,-500.0,0.00014991,2]
[404522956,1770239440588,-208.5789033,0.00014991,2]
[404522958,1770239440598,-3286.1281269,0.00015,2]
[404522959,1770239440607,-1153.93461934,0.00015,2]
[404522960,1770239440616,-5115.52230349,0.00015,2]
[404522961,1770239440635,-9999.99,0.00015,2]
[404522962,1770239440645,-250.0,0.00015,2]
[404522963,1770239440654,-152.38,0.00015,2]
[404522964,1770239440663,-152.38,0.00015,2]
[404522965,1770239440674,-6667.98648968,0.00015016,2]
[404522966,1770239440683,-587.0,0.00015048,2]
[404522967,1770239440692,-1158.0,0.00015094,2]
[404522968,1770239440702,-1212.46650018,0.00015124,2]
[404522969,1770239440711,-1000.0,0.00015148,2]
[404522970,1770239440720,-1000.0,0.00015148,2]
[404522971,1770239440729,-418.49460526,0.00015148,2]
[404522972,1770239440739,-820.0,0.0001533,2]
[404522973,1770239440748,-3618.68200531,0.000154,2]
[404522975,1770239440757,-1422.0,0.00015435,2]
[404522977,1770239440767,-236.0,0.00015466,2]
[404522979,1770239440776,-1500.0,0.00015696,2]
[404522981,1770239440786,-1500.0,0.00015696,2]
[404522983,1770239440795,-722.96933342,0.00015699,2]
[404522985,1770239440804,-1928.84058468,0.00015699,2]
[404522988,1770239440814,-500.0,0.00015753,2]
[404522990,1770239440827,-3618.68200531,0.000159,2]
[404522992,1770239440836,-4875.22,0.00016116,2]
[404522994,1770239440846,-7105.77,0.00016116,2]
[404522996,1770239440855,-150.99,0.00016116,2]
[404522998,1770239440864,-500.0,0.00016179,2]
[404523000,1770239440874,-2000.0,0.00016244,2]
[404523002,1770239440883,-2000.0,0.00016244,2]
[404523004,1770239440893,-10187.01729344,0.00016308,2]
[404523006,1770239440902,-13783.3938,0.00016308,2]
[404523008,1770239440912,-450.0,0.00016334,2]
[404523010,1770239440922,-3618.68200531,0.000164,2]
[404523012,1770239440937,-800.755787,0.00016438,2]
[404523014,1770239440946,-481.28670728,0.00016451,2]
[404523016,1770239440957,-823.0,0.00016511,2]
[404523018,1770239440967,-6667.98648968,0.00016535,2]
[404523020,1770239440977,-150.0,0.00016678,2]
[404523022,1770239440986,-165.75,0.00016712,2]
[404523024,1770239440996,-160.0,0.0001676,2]
[404523026,1770239441005,-2500.0,0.00016792,2]
[404523028,1770239441014,-1826.91110422,0.00016792,2]
[404523031,1770239441027,-481.28670728,0.00016862,2]
[404523033,1770239441037,-3618.68200531,0.000169,2]
[404523035,1770239441047,-300.0,0.00017,2]
[404523037,1770239441057,-151.0,0.00017022,2]
[404523039,1770239441067,-151.0,0.00017022,2]
[404523041,1770239441077,-500.0,0.00017024,2]
[404523043,1770239441086,-500.0,0.00017024,2]
[404523045,1770239441095,-500.0,0.00017024,2]
[404523047,1770239441105,-500.0,0.00017024,2]
[404523049,1770239441115,-534.84,0.00017024,2]
[404523051,1770239441127,-500.0,0.0001709,2]
[404523053,1770239441136,-416.982919,0.00017098,7]
[404523055,1770239441146,-322.6107,0.00017099,2]
[404523057,1770239441158,-174.61919141,0.00017099,2]
[404523059,1770239441168,-209.40437684,0.00017099,2]
[404523061,1770239441177,-500.0,0.00017099,2]
[404523063,1770239441186,-500.0,0.00017099,2]
[404523065,1770239441195,-500.0,0.00017099,2]
[404523067,1770239441207,-500.0,0.00017099,2]
[404523069,1770239441218,-500.0,0.00017099,2]
[404523071,1770239441227,-743.50770149,0.00017099,2]
[404523073,1770239441241,-500.0,0.00017099,2]
[404523075,1770239441251,-500.0,0.00017099,2]
[404523077,1770239441260,-500.0,0.00017099,2]
[404523079,1770239441270,-500.0,0.00017099,2]
[404523081,1770239441280,-500.0,0.00017099,2]
[404523083,1770239441289,-500.0,0.00017099,2]
[404523112,1770239441566,-500.0,0.00017099,2]
[404523114,1770239441576,-500.0,0.00017099,2]
[404523116,1770239441585,-500.0,0.00017099,2]
[404523118,1770239441595,-500.0,0.00017099,2]
[404523120,1770239441604,-500.0,0.00017099,2]
[404523122,1770239441613,-500.0,0.00017099,2]
[404523124,1770239441622,-500.0,0.00017099,2]
[404523126,1770239441632,-578.20924308,0.00017099,2]
[404523129,1770239441641,-500.0,0.00017099,2]
[404523131,1770239441651,-500.0,0.00017099,2]
[404523132,1770239441660,-500.0,0.00017099,2]
[404523134,1770239441669,-217.15233878,0.00017154,2]
[404523137,1770239441680,-200.0,0.00017174,2]
[404523138,1770239441690,-225.18697532,0.00017209,2]
[404523140,1770239441699,-233.51889341,0.00017264,2]
[404523143,1770239441711,-481.28670728,0.00017273,2]
[404523144,1770239441720,-242.15909246,0.00017319,2]
[404523147,1770239441730,-3000.0,0.0001734,2]
[404523149,1770239441739,-251.11897888,0.00017374,2]
[404523151,1770239441751,-3618.68200531,0.000174,2]
[404523153,1770239441760,-7300.0,0.000174,6]
[404523155,1770239441770,-260.4103811,0.00017429,2]